[Event "*** SCC Grand Prix: Titled Tuesday Blitz"]
[Site "Chess.com"]
[Date "2020.06.02"]
[Round "1"]
[White "Mikedannnn"]
[Black "luizwas"]
[Result "1-0"]
[WhiteElo "2463"]
[BlackElo "1852"]
[TimeControl "180+1"]
[EndTime "10:05:02 PDT"]
[Termination "Mikedannnn won by checkmate"]

1. e4 {[%clk 0:02:59.8]} 1... e6 {[%clk 0:02:58.6]} 2. d4 {[%clk 0:02:58.8]}
2... d5 {[%clk 0:02:58.7]} 3. Nc3 {[%clk 0:02:58.4]} 3... Nf6 {[%clk 0:02:57.2]}
4. e5 {[%clk 0:02:54.6]} 4... Nfd7 {[%clk 0:02:54.9]} 5. f4 {[%clk 0:02:55.1]}
5... c5 {[%clk 0:02:54]} 6. Nf3 {[%clk 0:02:55.3]} 6... Qb6 {[%clk 0:02:52.5]}
7. a3 {[%clk 0:02:51.3]} 7... Nc6 {[%clk 0:02:46.9]} 8. Be3 {[%clk 0:02:50.5]}
8... Qxb2 {[%clk 0:02:45.3]} 9. Na4 {[%clk 0:02:48]} 9... Qxa1 {[%clk
0:02:12.1]} 10. Qxa1 {[%clk 0:02:48.9]} 10... cxd4 {[%clk 0:02:12.7]} 11. Nxd4
{[%clk 0:02:47.4]} 11... Na5 {[%clk 0:01:50.9]} 12. Nb5 {[%clk 0:02:40.6]} 12...
Kd8 {[%clk 0:01:49.5]} 13. Bxa7 {[%clk 0:02:37.1]} 13... Nc6 {[%clk 0:01:45.3]}
14. Nb6 {[%clk 0:02:36]} 14... Rxa7 {[%clk 0:01:37.1]} 15. Nxc8 {[%clk
0:02:30.8]} 15... Kxc8 {[%clk 0:01:35]} 16. Nxa7+ {[%clk 0:02:29.3]} 16... Nxa7
{[%clk 0:01:35.9]} 17. c4 {[%clk 0:02:27]} 17... Nb6 {[%clk 0:01:28.5]} 18. Qd4
{[%clk 0:02:13.6]} 18... Kc7 {[%clk 0:01:27.4]} 19. cxd5 {[%clk 0:02:12.5]}
19... exd5 {[%clk 0:01:27.5]} 20. Bd3 {[%clk 0:02:05.1]} 20... Nc6 {[%clk
0:01:27.6]} 21. Qc3 {[%clk 0:02:00.3]} 21... d4 {[%clk 0:01:26.6]} 22. Qb3
{[%clk 0:01:58.3]} 22... Be7 {[%clk 0:01:17]} 23. O-O {[%clk 0:01:51.4]} 23...
Ra8 {[%clk 0:01:12.3]} 24. Rb1 {[%clk 0:01:50.9]} 24... Bc5 {[%clk 0:01:09.8]}
25. Qxf7+ {[%clk 0:01:49.6]} 25... Kb8 {[%clk 0:01:08.9]} 26. Rb5 {[%clk
0:01:19.4]} 26... Bxa3 {[%clk 0:00:59.8]} 27. Rxb6 {[%clk 0:01:17.9]} 27... Bc5
{[%clk 0:00:56.8]} 28. Qxb7# {[%clk 0:01:16.6]} 1-0

[Event "*** SCC Grand Prix: Titled Tuesday Blitz"]
[Site "Chess.com"]
[Date "2020.06.02"]
[Round "1"]
[White "AnishGiri"]
[Black "AshotParvanyan"]
[Result "1-0"]
[WhiteElo "2977"]
[BlackElo "2449"]
[TimeControl "180+1"]
[EndTime "10:05:17 PDT"]
[Termination "AnishGiri won by resignation"]

1. e4 {[%clk 0:03:00.5]} 1... e6 {[%clk 0:02:58.4]} 2. d4 {[%clk 0:03:00.5]}
2... d5 {[%clk 0:02:58.3]} 3. Nc3 {[%clk 0:03:01]} 3... Bb4 {[%clk 0:02:56.9]}
4. e5 {[%clk 0:03:01.5]} 4... Ne7 {[%clk 0:02:56.6]} 5. a3 {[%clk 0:03:02]} 5...
Bxc3+ {[%clk 0:02:55.5]} 6. bxc3 {[%clk 0:03:02.9]} 6... c5 {[%clk 0:02:55.5]}
7. Qg4 {[%clk 0:02:59.9]} 7... Qc7 {[%clk 0:02:54.2]} 8. Bd3 {[%clk 0:02:59.7]}
8... c4 {[%clk 0:02:53.6]} 9. Be2 {[%clk 0:02:59.9]} 9... Nf5 {[%clk 0:02:53.3]}
10. h4 {[%clk 0:02:57.5]} 10... O-O {[%clk 0:02:32.2]} 11. h5 {[%clk 0:02:56.4]}
11... h6 {[%clk 0:02:26.4]} 12. Nf3 {[%clk 0:02:55.5]} 12... Nc6 {[%clk
0:02:17.8]} 13. a4 {[%clk 0:02:35.3]} 13... Qa5 {[%clk 0:01:52.6]} 14. Bd2
{[%clk 0:02:29.1]} 14... f6 {[%clk 0:01:44.1]} 15. Qh3 {[%clk 0:02:26.3]} 15...
fxe5 {[%clk 0:01:39.7]} 16. dxe5 {[%clk 0:02:26.3]} 16... Qc7 {[%clk 0:00:25]}
17. g4 {[%clk 0:02:25.8]} 17... Nxe5 {[%clk 0:00:12.9]} 18. Nxe5 {[%clk
0:02:23.5]} 18... Qxe5 {[%clk 0:00:13.8]} 19. gxf5 {[%clk 0:02:24]} 19... exf5
{[%clk 0:00:14.3]} 20. f4 {[%clk 0:02:18.8]} 20... Qe4 {[%clk 0:00:10.4]} 21.
Rg1 {[%clk 0:02:11.4]} 21... Re8 {[%clk 0:00:09.3]} 22. Qg2 {[%clk 0:02:11.4]}
22... Re7 {[%clk 0:00:06.4]} 23. Qxe4 {[%clk 0:02:09.2]} 23... fxe4 {[%clk
0:00:06.5]} 24. Be3 {[%clk 0:02:08.9]} 24... Bf5 {[%clk 0:00:06.4]} 25. a5
{[%clk 0:02:08.9]} 25... a6 {[%clk 0:00:05.1]} 26. Rb1 {[%clk 0:02:09.3]} 26...
Rae8 {[%clk 0:00:04.7]} 27. Rb6 {[%clk 0:02:09.8]} 27... Bc8 {[%clk 0:00:04.6]}
28. Rxh6 {[%clk 0:02:08.4]} 28... Re6 {[%clk 0:00:05]} 29. Rhg6 {[%clk
0:02:05.2]} 29... Rxg6 {[%clk 0:00:04.8]} 30. Rxg6 {[%clk 0:02:05.7]} 30... Bf5
{[%clk 0:00:05.1]} 31. Rg5 {[%clk 0:02:05.8]} 31... Be6 {[%clk 0:00:04.4]} 32.
f5 {[%clk 0:02:04.8]} 32... Bf7 {[%clk 0:00:03.9]} 33. Bd4 {[%clk 0:02:05.1]}
1-0

[Event "*** SCC Grand Prix: Titled Tuesday Blitz"]
[Site "Chess.com"]
[Date "2020.06.02"]
[Round "1"]
[White "Crazy_girl99"]
[Black "almo64"]
[Result "0-1"]
[WhiteElo "2415"]
[BlackElo "2833"]
[TimeControl "180+1"]
[EndTime "10:05:17 PDT"]
[Termination "almo64 won by resignation"]

1. Nf3 {[%clk 0:02:24.3]} 1... d5 {[%clk 0:02:57.5]} 2. g3 {[%clk 0:02:23.4]}
2... Nd7 {[%clk 0:02:56.1]} 3. d4 {[%clk 0:02:16.4]} 3... e6 {[%clk 0:02:56.1]}
4. Bg2 {[%clk 0:02:14.7]} 4... Ngf6 {[%clk 0:02:56.4]} 5. O-O {[%clk 0:02:13.3]}
5... b5 {[%clk 0:02:56.6]} 6. a4 {[%clk 0:02:08.2]} 6... b4 {[%clk 0:02:56.7]}
7. Nbd2 {[%clk 0:02:03.1]} 7... Bb7 {[%clk 0:02:53.2]} 8. c4 {[%clk 0:02:02]}
8... bxc3 {[%clk 0:02:52.6]} 9. bxc3 {[%clk 0:02:01.8]} 9... c5 {[%clk 0:02:53]}
10. e3 {[%clk 0:02:00.8]} 10... Be7 {[%clk 0:02:48.4]} 11. c4 {[%clk 0:02:01]}
11... O-O {[%clk 0:02:40.9]} 12. Ba3 {[%clk 0:01:59.7]} 12... Rc8 {[%clk
0:02:38.5]} 13. Qe2 {[%clk 0:01:55.5]} 13... dxc4 {[%clk 0:02:34.6]} 14. Nxc4
{[%clk 0:01:51.7]} 14... Ba6 {[%clk 0:02:34.9]} 15. Rfc1 {[%clk 0:01:50.1]}
15... Nb6 {[%clk 0:02:34]} 16. Nfd2 {[%clk 0:01:43.2]} 16... Nfd5 {[%clk
0:02:14.7]} 17. a5 {[%clk 0:01:34.8]} 17... Nxc4 {[%clk 0:02:14]} 18. Nxc4
{[%clk 0:01:35.7]} 18... cxd4 {[%clk 0:02:13.7]} 19. Bxe7 {[%clk 0:01:21.1]}
19... Nxe7 {[%clk 0:02:13.8]} 20. Bf1 {[%clk 0:01:13.1]} 20... Qd5 {[%clk
0:02:02.5]} 21. exd4 {[%clk 0:01:03.2]} 21... Bb7 {[%clk 0:01:56.3]} 22. f3
{[%clk 0:00:54]} 22... Nf5 {[%clk 0:01:56.6]} 23. Qe4 {[%clk 0:00:35.9]} 23...
Nxd4 {[%clk 0:01:50.7]} 24. Qxd5 {[%clk 0:00:29.1]} 24... Bxd5 {[%clk
0:01:50.9]} 25. f4 {[%clk 0:00:22.6]} 25... Nb3 {[%clk 0:01:50.9]} 26. Rab1
{[%clk 0:00:13.5]} 26... Nxc1 {[%clk 0:01:51]} 27. Rxc1 {[%clk 0:00:14.4]} 27...
Rc5 {[%clk 0:01:51]} 0-1

[Event "*** SCC Grand Prix: Titled Tuesday Blitz"]
[Site "Chess.com"]
[Date "2020.06.02"]
[Round "1"]
[White "ShieldingOff"]
[Black "Superfelix"]
[Result "0-1"]
[WhiteElo "2041"]
[BlackElo "2491"]
[TimeControl "180+1"]
[EndTime "10:05:23 PDT"]
[Termination "Superfelix won by resignation"]

1. d4 {[%clk 0:03:00]} 1... Nf6 {[%clk 0:02:59.8]} 2. c4 {[%clk 0:02:59.6]} 2...
g6 {[%clk 0:02:59.3]} 3. Nc3 {[%clk 0:02:58.9]} 3... Bg7 {[%clk 0:02:58]} 4. e4
{[%clk 0:02:59]} 4... d6 {[%clk 0:02:58.4]} 5. Be2 {[%clk 0:02:58.9]} 5... O-O
{[%clk 0:02:58.2]} 6. Be3 {[%clk 0:02:58.7]} 6... Na6 {[%clk 0:02:58.4]} 7. g4
{[%clk 0:02:56.3]} 7... e5 {[%clk 0:02:58.5]} 8. d5 {[%clk 0:02:55.7]} 8... Nc5
{[%clk 0:02:58.4]} 9. Bf3 {[%clk 0:02:54.3]} 9... a5 {[%clk 0:02:57]} 10. h4
{[%clk 0:02:53.3]} 10... h5 {[%clk 0:02:55.5]} 11. gxh5 {[%clk 0:02:43]} 11...
gxh5 {[%clk 0:02:55.5]} 12. Bxh5 {[%clk 0:02:27.2]} 12... Ncxe4 {[%clk 0:02:48]}
13. Be2 {[%clk 0:01:53.5]} 13... Nxc3 {[%clk 0:02:46.7]} 14. bxc3 {[%clk
0:01:52.7]} 14... Ne4 {[%clk 0:02:45.9]} 15. Qc1 {[%clk 0:01:26]} 15... f5
{[%clk 0:02:39.9]} 16. Bh6 {[%clk 0:01:19]} 16... Bxh6 {[%clk 0:02:36.6]} 17.
Qxh6 {[%clk 0:01:17.8]} 17... Qf6 {[%clk 0:02:36.8]} 18. Qh5 {[%clk 0:01:10.6]}
18... Qh8 {[%clk 0:02:24.2]} 19. Qf3 {[%clk 0:01:04.4]} 19... Qh6 {[%clk
0:02:23.7]} 20. Nh3 {[%clk 0:00:59.1]} 20... Kh8 {[%clk 0:02:12]} 21. Rg1 {[%clk
0:00:54.5]} 21... Bd7 {[%clk 0:01:56.2]} 22. Ng5 {[%clk 0:00:51.4]} 22... Rf6
{[%clk 0:01:51.6]} 23. Rd1 {[%clk 0:00:39.8]} 23... Raf8 {[%clk 0:01:49.5]} 24.
Qh3 {[%clk 0:00:26.1]} 24... Bc8 {[%clk 0:01:38.7]} 25. Nxe4 {[%clk 0:00:18]}
25... fxe4 {[%clk 0:01:35.5]} 26. Rg2 {[%clk 0:00:16.4]} 26... Bxh3 {[%clk
0:01:31.7]} 0-1

[Event "*** SCC Grand Prix: Titled Tuesday Blitz"]
[Site "Chess.com"]
[Date "2020.06.02"]
[Round "1"]
[White "BocharovD"]
[Black "amiralfio"]
[Result "1-0"]
[WhiteElo "2773"]
[BlackElo "2394"]
[TimeControl "180+1"]
[EndTime "10:05:24 PDT"]
[Termination "BocharovD won by resignation"]

1. d4 {[%clk 0:03:00.7]} 1... f5 {[%clk 0:00:45.2]} 2. c4 {[%clk 0:02:52.9]}
2... Nf6 {[%clk 0:00:44.1]} 3. Nf3 {[%clk 0:02:52.5]} 3... e6 {[%clk 0:00:34]}
4. g3 {[%clk 0:02:51.4]} 4... Be7 {[%clk 0:00:34.5]} 5. Bg2 {[%clk 0:02:51.5]}
5... O-O {[%clk 0:00:35.1]} 6. O-O {[%clk 0:02:52.1]} 6... d6 {[%clk 0:00:35.7]}
7. Nc3 {[%clk 0:02:50.6]} 7... Ne4 {[%clk 0:00:35.9]} 8. Nxe4 {[%clk 0:02:40.2]}
8... fxe4 {[%clk 0:00:36.8]} 9. Ne1 {[%clk 0:02:40.2]} 9... d5 {[%clk
0:00:31.9]} 10. f3 {[%clk 0:02:40.5]} 10... dxc4 {[%clk 0:00:27]} 11. fxe4
{[%clk 0:02:38.1]} 11... e5 {[%clk 0:00:27.1]} 12. e3 {[%clk 0:02:34.3]} 12...
Nc6 {[%clk 0:00:22.9]} 13. Nc2 {[%clk 0:02:32.1]} 13... Qd6 {[%clk 0:00:18.3]}
14. Rxf8+ {[%clk 0:02:25.6]} 14... Bxf8 {[%clk 0:00:19.2]} 15. d5 {[%clk
0:02:25.1]} 15... Ne7 {[%clk 0:00:18.6]} 16. Bd2 {[%clk 0:02:18]} 16... a5
{[%clk 0:00:17.1]} 17. Na3 {[%clk 0:02:14.6]} 17... Qc5 {[%clk 0:00:12.2]} 18.
Qf3 {[%clk 0:02:01.2]} 18... Ng6 {[%clk 0:00:05.1]} 19. Rf1 {[%clk 0:01:59.2]}
19... b5 {[%clk 0:00:04.8]} 20. Qf7+ {[%clk 0:01:56.8]} 20... Kh8 {[%clk
0:00:05.2]} 21. Qe8 {[%clk 0:01:56.4]} 21... Bb7 {[%clk 0:00:03.8]} 22. Qxb5
{[%clk 0:01:54.8]} 22... Qxb5 {[%clk 0:00:02.3]} 23. Nxb5 {[%clk 0:01:54.6]}
23... Bc5 {[%clk 0:00:01.4]} 24. Nxc7 {[%clk 0:01:52.4]} 24... a4 {[%clk
0:00:02.1]} 25. Nxa8 {[%clk 0:01:51.7]} 1-0

[Event "*** SCC Grand Prix: Titled Tuesday Blitz"]
[Site "Chess.com"]
[Date "2020.06.02"]
[Round "1"]
[White "bazar-wokzal"]
[Black "Bulldog167"]
[Result "0-1"]
[WhiteElo "2388"]
[BlackElo "2763"]
[TimeControl "180+1"]
[EndTime "10:05:24 PDT"]
[Termination "Bulldog167 won on time"]

1. e4 {[%clk 0:02:56.8]} 1... c5 {[%clk 0:02:59.9]} 2. c3 {[%clk 0:02:56.4]}
2... g6 {[%clk 0:02:58.3]} 3. d4 {[%clk 0:02:55.4]} 3... cxd4 {[%clk 0:02:59.2]}
4. cxd4 {[%clk 0:02:54.4]} 4... Bg7 {[%clk 0:02:59.5]} 5. Nc3 {[%clk 0:02:53.2]}
5... d6 {[%clk 0:02:58.8]} 6. h4 {[%clk 0:02:50.2]} 6... Nf6 {[%clk 0:02:56.5]}
7. h5 {[%clk 0:02:42.7]} 7... Nxh5 {[%clk 0:02:53.8]} 8. g4 {[%clk 0:02:41.1]}
8... Nf6 {[%clk 0:02:52.7]} 9. g5 {[%clk 0:02:40.7]} 9... Nfd7 {[%clk 0:02:52]}
10. f4 {[%clk 0:02:38.3]} 10... h6 {[%clk 0:02:40]} 11. gxh6 {[%clk 0:02:37.1]}
11... Rxh6 {[%clk 0:02:40.4]} 12. Rxh6 {[%clk 0:02:34.4]} 12... Bxh6 {[%clk
0:02:41.3]} 13. Nf3 {[%clk 0:02:34.1]} 13... Nf6 {[%clk 0:02:33.7]} 14. Bc4
{[%clk 0:02:15.6]} 14... Bg4 {[%clk 0:02:24.6]} 15. Qa4+ {[%clk 0:02:05]} 15...
Nbd7 {[%clk 0:02:18.2]} 16. Ng5 {[%clk 0:02:01.9]} 16... e6 {[%clk 0:01:59.7]}
17. f5 {[%clk 0:01:36]} 17... gxf5 {[%clk 0:01:48.2]} 18. Nb5 {[%clk 0:00:24.1]}
18... Nxe4 {[%clk 0:01:41]} 19. Nxe4 {[%clk 0:00:12.6]} 19... fxe4 {[%clk
0:01:40.7]} 20. Nxd6+ {[%clk 0:00:05.7]} 20... Ke7 {[%clk 0:01:41.2]} 21. Bxh6
{[%clk 0:00:01.3]} 21... Kxd6 {[%clk 0:01:35.9]} 0-1

[Event "*** SCC Grand Prix: Titled Tuesday Blitz"]
[Site "Chess.com"]
[Date "2020.06.02"]
[Round "1"]
[White "EugeneRougon"]
[Black "EfM13"]
[Result "1-0"]
[WhiteElo "2654"]
[BlackElo "2314"]
[TimeControl "180+1"]
[EndTime "10:05:26 PDT"]
[Termination "EugeneRougon won by resignation"]

1. e4 {[%clk 0:03:00.9]} 1... g6 {[%clk 0:02:59.4]} 2. d4 {[%clk 0:02:57.3]}
2... Bg7 {[%clk 0:03:00.3]} 3. Nc3 {[%clk 0:02:57.2]} 3... d6 {[%clk 0:03:00.4]}
4. Nf3 {[%clk 0:02:56.7]} 4... Nf6 {[%clk 0:02:59.7]} 5. Be2 {[%clk 0:02:57.1]}
5... O-O {[%clk 0:02:59.1]} 6. O-O {[%clk 0:02:57.6]} 6... c6 {[%clk 0:02:54.7]}
7. a4 {[%clk 0:02:57.6]} 7... Qc7 {[%clk 0:02:49.4]} 8. Be3 {[%clk 0:02:41.2]}
8... e5 {[%clk 0:02:43.9]} 9. h3 {[%clk 0:02:36.1]} 9... Nbd7 {[%clk 0:02:42]}
10. dxe5 {[%clk 0:02:34.8]} 10... dxe5 {[%clk 0:02:41.2]} 11. Bc4 {[%clk
0:02:33.5]} 11... h6 {[%clk 0:02:34.9]} 12. Qd2 {[%clk 0:02:27.8]} 12... Kh7
{[%clk 0:02:34.1]} 13. a5 {[%clk 0:02:23.3]} 13... Nh5 {[%clk 0:02:19.4]} 14.
Rfd1 {[%clk 0:01:59.5]} 14... Nf4 {[%clk 0:02:16.2]} 15. Qd6 {[%clk 0:01:57.7]}
15... Qxd6 {[%clk 0:01:30.4]} 16. Rxd6 {[%clk 0:01:57.6]} 16... Bf6 {[%clk
0:00:22.6]} 17. Rad1 {[%clk 0:01:50.3]} 17... Bd8 {[%clk 0:00:19.1]} 18. Rxd7
{[%clk 0:01:37.5]} 18... Bxd7 {[%clk 0:00:19]} 19. Rxd7 {[%clk 0:01:38.4]} 19...
b5 {[%clk 0:00:17.5]} 20. Bxf7 {[%clk 0:01:23.6]} 20... Kh8 {[%clk 0:00:13.9]}
21. Nxe5 {[%clk 0:01:23.2]} 1-0

[Event "*** SCC Grand Prix: Titled Tuesday Blitz"]
[Site "Chess.com"]
[Date "2020.06.02"]
[Round "1"]
[White "Borsuk_Konstantin"]
[Black "Reinaldovera"]
[Result "0-1"]
[WhiteElo "2556"]
[BlackElo "2248"]
[TimeControl "180+1"]
[EndTime "10:05:26 PDT"]
[Termination "Reinaldovera won by resignation"]

1. d4 {[%clk 0:03:00.9]} 1... Nf6 {[%clk 0:02:58.5]} 2. c4 {[%clk 0:02:59.4]}
2... e6 {[%clk 0:02:57.1]} 3. Nc3 {[%clk 0:02:58.7]} 3... Bb4 {[%clk 0:02:53.2]}
4. e3 {[%clk 0:02:58.4]} 4... O-O {[%clk 0:02:51.4]} 5. Bd2 {[%clk 0:02:57.5]}
5... d5 {[%clk 0:02:49.7]} 6. cxd5 {[%clk 0:02:51.3]} 6... exd5 {[%clk
0:02:47.3]} 7. Bd3 {[%clk 0:02:48.1]} 7... c6 {[%clk 0:02:45.8]} 8. a3 {[%clk
0:02:38.6]} 8... Bd6 {[%clk 0:02:43.5]} 9. Qc2 {[%clk 0:02:35.4]} 9... Nbd7
{[%clk 0:02:34]} 10. Nge2 {[%clk 0:02:24.2]} 10... Re8 {[%clk 0:02:30]} 11. h3
{[%clk 0:02:19]} 11... Nf8 {[%clk 0:02:18.4]} 12. b4 {[%clk 0:02:00.7]} 12...
Qe7 {[%clk 0:02:10.6]} 13. Na4 {[%clk 0:01:44.7]} 13... Ng6 {[%clk 0:02:04]} 14.
Nc5 {[%clk 0:01:35.2]} 14... Nh4 {[%clk 0:02:01]} 15. Kf1 {[%clk 0:01:26.6]}
15... Ne4 {[%clk 0:01:54.1]} 16. Bxe4 {[%clk 0:00:37.9]} 16... dxe4 {[%clk
0:01:51.4]} 17. g3 {[%clk 0:00:28.9]} 17... Nf3 {[%clk 0:01:35.5]} 18. Ng1
{[%clk 0:00:28.5]} 18... Qf6 {[%clk 0:01:22.3]} 19. Nxe4 {[%clk 0:00:23]} 19...
Rxe4 {[%clk 0:01:18.4]} 0-1

[Event "*** SCC Grand Prix: Titled Tuesday Blitz"]
[Site "Chess.com"]
[Date "2020.06.02"]
[Round "1"]
[White "LisikValera"]
[Black "ChEsper99"]
[Result "1-0"]
[WhiteElo "2497"]
[BlackElo "2058"]
[TimeControl "180+1"]
[EndTime "10:05:27 PDT"]
[Termination "LisikValera won by resignation"]

1. d4 {[%clk 0:02:52.5]} 1... Nf6 {[%clk 0:02:59.9]} 2. c4 {[%clk 0:02:52.3]}
2... e6 {[%clk 0:03:00.4]} 3. Nc3 {[%clk 0:02:47.2]} 3... Bb4 {[%clk 0:02:59.6]}
4. Nf3 {[%clk 0:02:47.1]} 4... O-O {[%clk 0:02:58.4]} 5. Bg5 {[%clk 0:02:47.5]}
5... h6 {[%clk 0:02:57]} 6. Bh4 {[%clk 0:02:47.3]} 6... b6 {[%clk 0:02:56.2]} 7.
e3 {[%clk 0:02:47]} 7... Bb7 {[%clk 0:02:54.8]} 8. Bd3 {[%clk 0:02:46.9]} 8...
d5 {[%clk 0:02:51.7]} 9. cxd5 {[%clk 0:02:43.7]} 9... exd5 {[%clk 0:02:50.3]}
10. O-O {[%clk 0:02:42.9]} 10... Bd6 {[%clk 0:02:48.4]} 11. Ne5 {[%clk
0:02:35.7]} 11... Re8 {[%clk 0:02:29.2]} 12. f4 {[%clk 0:02:19.5]} 12... Be7
{[%clk 0:02:25.1]} 13. Qf3 {[%clk 0:02:13.9]} 13... Nbd7 {[%clk 0:02:01.6]} 14.
Rae1 {[%clk 0:01:57.9]} 14... c5 {[%clk 0:01:41]} 15. g4 {[%clk 0:01:56.1]}
15... Ne4 {[%clk 0:01:11.2]} 16. Bxe7 {[%clk 0:01:52.7]} 16... Qxe7 {[%clk
0:01:10.3]} 17. Nxe4 {[%clk 0:01:50.6]} 17... dxe4 {[%clk 0:01:02.6]} 18. Bxe4
{[%clk 0:01:51.5]} 18... Bxe4 {[%clk 0:00:58]} 19. Qxe4 {[%clk 0:01:52.4]} 19...
Rad8 {[%clk 0:00:39.5]} 20. Qf5 {[%clk 0:01:39.6]} 20... Nxe5 {[%clk 0:00:37.1]}
21. dxe5 {[%clk 0:01:37.3]} 21... Rd2 {[%clk 0:00:31.6]} 22. Rf2 {[%clk
0:01:37.6]} 22... Red8 {[%clk 0:00:31.1]} 23. Ree2 {[%clk 0:01:33.9]} 23... Rd1+
{[%clk 0:00:15.3]} 24. Kg2 {[%clk 0:01:33.2]} 24... Rb1 {[%clk 0:00:10.1]} 25.
Qxb1 {[%clk 0:01:31]} 1-0

[Event "*** SCC Grand Prix: Titled Tuesday Blitz"]
[Site "Chess.com"]
[Date "2020.06.02"]
[Round "1"]
[White "GMBenjaminBok"]
[Black "Happy1712Drummer"]
[Result "1-0"]
[WhiteElo "2907"]
[BlackElo "2434"]
[TimeControl "180+1"]
[EndTime "10:05:31 PDT"]
[Termination "GMBenjaminBok won on time"]

1. d4 {[%clk 0:03:00.7]} 1... d5 {[%clk 0:02:59.2]} 2. Nf3 {[%clk 0:03:00.1]}
2... Nf6 {[%clk 0:02:58.4]} 3. c4 {[%clk 0:03:00.3]} 3... c6 {[%clk 0:02:58.4]}
4. Nc3 {[%clk 0:02:59.1]} 4... e6 {[%clk 0:02:58.6]} 5. e3 {[%clk 0:02:58.5]}
5... Nbd7 {[%clk 0:02:57.9]} 6. Qc2 {[%clk 0:02:58.8]} 6... Bd6 {[%clk 0:02:57]}
7. b3 {[%clk 0:02:56.7]} 7... Qe7 {[%clk 0:02:55.8]} 8. Be2 {[%clk 0:02:54.9]}
8... O-O {[%clk 0:02:54.4]} 9. O-O {[%clk 0:02:54.3]} 9... e5 {[%clk 0:02:24]}
10. cxd5 {[%clk 0:02:49.8]} 10... Nxd5 {[%clk 0:02:19.2]} 11. Nxd5 {[%clk
0:02:40.9]} 11... cxd5 {[%clk 0:02:18.5]} 12. dxe5 {[%clk 0:02:41.4]} 12... Nxe5
{[%clk 0:02:18]} 13. Bb2 {[%clk 0:02:41.8]} 13... Nxf3+ {[%clk 0:01:41.6]} 14.
Bxf3 {[%clk 0:02:42.7]} 14... Be6 {[%clk 0:01:41.2]} 15. Rfd1 {[%clk 0:02:39.9]}
15... Rac8 {[%clk 0:01:31.7]} 16. Qd2 {[%clk 0:02:19.7]} 16... Rfd8 {[%clk
0:00:49.8]} 17. Rac1 {[%clk 0:02:18.2]} 17... Bc5 {[%clk 0:00:24.8]} 18. h3
{[%clk 0:01:52.7]} 18... f6 {[%clk 0:00:19.7]} 19. Bd4 {[%clk 0:01:45.1]} 19...
Bb4 {[%clk 0:00:17.3]} 20. Qd3 {[%clk 0:01:43.2]} 20... a6 {[%clk 0:00:16.3]}
21. Bb6 {[%clk 0:01:36.7]} 21... Rxc1 {[%clk 0:00:04.8]} 22. Rxc1 {[%clk
0:01:37.6]} 22... Rd7 {[%clk 0:00:04.5]} 23. Rc8+ {[%clk 0:01:35.2]} 23... Kf7
{[%clk 0:00:04.3]} 24. Qxh7 {[%clk 0:01:35.5]} 1-0

[Event "*** SCC Grand Prix: Titled Tuesday Blitz"]
[Site "Chess.com"]
[Date "2020.06.02"]
[Round "1"]
[White "SCIM"]
[Black "dosto07"]
[Result "1-0"]
[WhiteElo "2511"]
[BlackElo "2112"]
[TimeControl "180+1"]
[EndTime "10:05:33 PDT"]
[Termination "SCIM won by resignation"]

1. d4 {[%clk 0:02:59.7]} 1... d5 {[%clk 0:02:58.6]} 2. c4 {[%clk 0:02:59.3]}
2... dxc4 {[%clk 0:02:58.7]} 3. e4 {[%clk 0:02:59]} 3... e5 {[%clk 0:02:57.8]}
4. Nf3 {[%clk 0:02:59.3]} 4... exd4 {[%clk 0:02:57.9]} 5. Bxc4 {[%clk
0:02:58.8]} 5... Nc6 {[%clk 0:02:58.4]} 6. O-O {[%clk 0:02:57.9]} 6... Be6
{[%clk 0:02:58.4]} 7. Bxe6 {[%clk 0:02:54.6]} 7... fxe6 {[%clk 0:02:58.3]} 8.
Qb3 {[%clk 0:02:55.2]} 8... Qd7 {[%clk 0:02:57.2]} 9. Qxb7 {[%clk 0:02:53.1]}
9... Rb8 {[%clk 0:02:57.6]} 10. Qa6 {[%clk 0:02:53.1]} 10... Nf6 {[%clk
0:02:58.2]} 11. e5 {[%clk 0:02:45.9]} 11... Nd5 {[%clk 0:02:43.6]} 12. a3 {[%clk
0:02:36.5]} 12... Be7 {[%clk 0:02:31.3]} 13. Qd3 {[%clk 0:02:28.8]} 13... O-O
{[%clk 0:02:27]} 14. Re1 {[%clk 0:02:26.7]} 14... a5 {[%clk 0:02:14.1]} 15. Nbd2
{[%clk 0:02:20]} 15... Nf4 {[%clk 0:02:05.2]} 16. Qe4 {[%clk 0:02:14.7]} 16...
d3 {[%clk 0:02:03.2]} 17. Nf1 {[%clk 0:01:46.2]} 17... Ne2+ {[%clk 0:01:50.7]}
18. Kh1 {[%clk 0:01:44.3]} 18... Bc5 {[%clk 0:01:46.8]} 19. Be3 {[%clk
0:01:37.3]} 19... Bxe3 {[%clk 0:01:41.8]} 20. Nxe3 {[%clk 0:01:38.2]} 20... Rxb2
{[%clk 0:01:36.7]} 21. Rad1 {[%clk 0:01:36.8]} 21... Rd8 {[%clk 0:00:58.1]} 22.
Ng5 {[%clk 0:01:31]} 22... g6 {[%clk 0:00:57.5]} 23. Ng4 {[%clk 0:01:31.3]}
23... Kg7 {[%clk 0:00:41.3]} 24. Nf6 {[%clk 0:01:24.9]} 24... Nc3 {[%clk
0:00:36.5]} 25. Qh4 {[%clk 0:01:17.1]} 25... h5 {[%clk 0:00:31.7]} 26. Nxd7
{[%clk 0:01:16.1]} 26... Rxd7 {[%clk 0:00:31.8]} 27. Nxe6+ {[%clk 0:01:13.5]}
27... Kh7 {[%clk 0:00:30]} 28. Nf8+ {[%clk 0:01:11.7]} 1-0